Cogmind - Beta 14 *** ADVENTURER MODE // 2024.08.17 @ 00:34:35 Player: Bob Result: Self-destructed Performance ------------- Evolutions (1) 500 Regions Visited (3) 600 Robots Destroyed (32) 160 Value Destroyed (679) 679 Prototype IDs (0) 0 Alien Tech Used (0) 0 Bonus (0) 0 TOTAL SCORE: 1939 Bonus ------- None Cogmind --------- Core Integrity 307/400 Matter 286/300 Energy 100/100 System Corruption 0% Temperature Cool (0) Movement Walking (120) Location -9/Materials Parts ------- > --- POWER (1) -------- (None) > --- PROPULSION (2) --- Carbon-fiber Leg Carbon-fiber Leg > --- UTILITY (4) ------ Small Storage Unit Sensor Array > --- WEAPON (2) ------- Beam Rifle Heavy Assault Rifle > --- INVENTORY (8) ---- Light Nuclear Core Flight Unit Structural Scanner Terrain Scanner Terrain Scan Processor Improved Grenade Launcher Mining Laser Peak State ------------ > --- POWER ------------ Light Nuclear Core > --- PROPULSION ------- Carbon-fiber Leg Carbon-fiber Leg > --- UTILITY ---------- Small Storage Unit ECM Suite > --- WEAPON ----------- Improved Grenade Launcher Improved Grenade Launcher > --- INVENTORY -------- Light Nuclear Core Structural Scanner Sensor Array Terrain Scanner Terrain Scan Processor Mining Laser Mining Claw [Rating: 18] Favorites ----------- Power Light Ion Engine Engine Light Ion Engine Power Core Light Nuclear Core Propulsion Wheel Leg Carbon-fiber Leg Wheel Wheel Utility Small Storage Unit Device ECM Suite Storage Small Storage Unit Weapon Assault Rifle Energy Gun EM Pulse Gun Ballistic Gun Assault Rifle Launcher Improved Grenade Launcher Slashing Weapon Mining Claw Build | -11 -10 -10 -9 ------- Run | Yrd Mat Min Mat Slots Evolved 2 | . . . 2 Power . | . . . . Propulsion . | . . . . Utility 2 | . . . 2 Weapon . | . . . . Parts Attached 26 | 6 2 3 15 Power 6 | 1 1 1 3 Engine 4 | 1 1 1 1 Core 2 | . . . 2 Reactor . | . . . . Propulsion 6 | 2 . . 4 Treads . | . . . . Leg 4 | . . . 4 Wheel 2 | 2 . . . Hover . | . . . . Flight . | . . . . Utility 3 | 1 . 1 1 Device 2 | . . 1 1 Storage 1 | 1 . . . Processor . | . . . . Hackware . | . . . . Protection . | . . . . Artifact . | . . . . Weapon 11 | 2 1 1 7 Energy Gun 3 | 1 . 1 1 Energy Cannon . | . . . . Ballistic Gun 4 | 1 1 . 2 Ballistic Cannon . | . . . . Launcher 2 | . . . 2 Special Weapon . | . . . . Impact Weapon . | . . . . Slashing Weapon 2 | . . . 2 Piercing Weapon . | . . . . Special Melee Weapon . | . . . . Unidentified Prototypes . | . . . . Parts Lost 7 | . 1 1 5 Power 3 | . . 1 2 Propulsion 2 | . . . 2 Utility 1 | . . . 1 Weapon 1 | . 1 . . Highest Loss Streak 1 | . 1 1 1 To Critical Strikes . | . . . . Average Slot Usage (%) 77 | . 84 91 71 Engine 6 | . 14 12 . Core 4 | . . . 7 Leg 8 | . . . 16 Wheel 14 | . 28 28 4 Device 8 | . . 7 13 Storage 12 | . 14 14 11 Energy Gun 4 | . 9 1 2 Ballistic Gun 11 | . 18 26 4 Launcher 2 | . . . 4 Slashing Weapon 3 | . . . 6 Peak Build Rating 18 | 6 6 8 18 Average Rating 9 | 3 5 6 12 On Entrance 4 | . 6 6 7 Naked Turns . | . . . . Heaviest Build 24 | 12 12 15 24 Greatest Support 30 | 20 20 20 30 Greatest Overweight (x) 3 | . . . 3 Average Overweight (x) . | . . . . Largest Inventory Capacity 8 | 8 8 8 8 Average Capacity 7 | 6 8 8 8 Most Carried 8 | 3 5 8 8 Average Carried 5 | . 2 6 7 Final Capacity 8 | 8 8 8 8 Final Carried 8 | . 5 8 7 Class Distribution -------------------- 100% | Mutant Dominant Class ---------------- Mutant | -10/Materials Mutant | -10/Mines Mutant | -9/Materials Resources | -11 -10 -10 -9 ----------- Run | Yrd Mat Min Mat Matter Collected 560 | 130 235 15 180 Remotely . | . . . . Salvage Created 931 | . 326 . 605 Parts 72 | . 28 . 44 Haulers Intercepted . | . . . . Recyclers Shooed . | . . . . Parts Field Recycled . | . . . . Retrieved Matter . | . . . . Parts Self-Destructed . | . . . . Prevented . | . . . . Kills | -11 -10 -10 -9 ------- Run | Yrd Mat Min Mat Combat Hostiles Destroyed 25 | . 10 . 15 Melee 11 | . . . 11 Guns 12 | . 10 . 2 AOE 2 | . . . 2 Classes Destroyed 6 | . 3 . 3 Worker 1 | . . . 1 Recycler 1 | . . . 1 Watcher 5 | . 2 . 3 Swarmer 13 | . 6 . 7 Grunt 8 | . 4 . 4 Sentry 4 | . . . 4 Best Kill Streak 4 | . 3 . 4 Combat Bots Only 3 | . 3 . 3 Max Kills in Single Turn 3 | . 1 . 3 Gunslinging . | . . . . Exploded 2 | . . . 2 Melee 1 | . . . 1 Uniques/NPCs Destroyed . | . . . . Combat | -11 -10 -10 -9 -------- Run | Yrd Mat Min Mat Hostile Shots Fired 177 | . 40 27 110 Missed 42 | . 10 9 23 Damage Taken 1093 | . 213 198 682 Core 191 | . 36 62 93 Absorbed by Shields . | . . . . Ignored by Resistances 341 | . 69 58 214 Core Remaining (%) 80 | 100 . 60 . Volleys Fired 40 | . 28 . 12 Largest 2 | . 2 . 2 Hottest 79 | . 60 . 79 Shots Fired 76 | . 55 . 21 Gun 74 | . 55 . 19 Cannon . | . . . . Launcher 2 | . . . 2 Special . | . . . . Kinetic 46 | . 34 . 12 Thermal 3 | . . . 3 Explosive 2 | . . . 2 Electromagnetic 25 | . 21 . 4 Robot Hit Streak 19 | . 19 . 12 Robot Miss Streak 3 | . 2 . 3 Penetration Max . | . . . . Secondary Targets . | . . . . Shots Hit Robots 96 | . 40 . 56 Core Hits 38 | . 14 1 23 Critical Kills . | . . . . Critical Parts Destroyed 1 | . 1 . . Critical Strikes 3 | . 2 . 1 Destroy 1 | . 1 . . Corrupt 2 | . 1 . 1 Melee Attacks 49 | . . . 49 Impact . | . . . . Slashing 49 | . . . 49 Piercing . | . . . . Sneak Attacks 3 | . . . 3 Combat Hostiles . | . . . . Follow-up Attacks . | . . . . Damage Inflicted 1935 | . 484 3 1448 Guns 632 | . 484 . 148 Cannons . | . . . . Explosions 238 | . . . 238 Melee 1062 | . . . 1062 Ramming 3 | . . 3 . Kinetic 330 | . 256 . 74 Thermal 29 | . . . 29 Explosive 238 | . . . 238 Electromagnetic 273 | . 228 . 45 Impact . | . . . . Slashing 1062 | . . . 1062 Piercing . | . . . . Highest Corruption . | . . . . Average Corruption . | . . . . Corruption Purged . | . . . . Corruption Blocked . | . . . . Overload Shots . | . . . . Overflow Damage 41 | . . . 41 Projectiles . | . . . . Explosions . | . . . . Melee 41 | . . . 41 Knockbacks . | . . . . Impact . | . . . . Kinetic . | . . . . Secondary . | . . . . Self-Inflicted Damage 1 | . . 1 . Shots . | . . . . Rammed 1 | . . 1 . Targets Rammed 1 | . . 1 . Kicked . | . . . . Crushed . | . . . . Highest Temperature 42 | . 42 . 30 Average Temperature 17 | . 20 . 10 Received Heat Transfer 459 | . 78 126 255 Siege Activations . | . . . . Robots Corrupted 1 | . 1 . . Combat Hostiles . | . . . . Parts Fried 3 | . 3 . . Impact Corruptions . | . . . . Robots Melted . | . . . . Combat Hostiles . | . . . . Parts Melted . | . . . . Heat Transferred 74 | . . . 74 Parts Sabotaged . | . . . . Parts Stolen . | . . . . Parts Stripped . | . . . . Power Chain Reactions . | . . . . Alert | -11 -10 -10 -9 ------- Run | Yrd Mat Min Mat Peak Influence 285 | . 285 68 238 Initial 53 | . . 53 18 Average 101 | . 152 55 86 Maximum Alert Level 1 | . 1 . 1 Low Security (%) 84 | 100 63 100 92 Level 1 15 | . 36 . 7 Level 2 . | . . . . Level 3 . | . . . . Level 4 . | . . . . Level 5 . | . . . . High Security . | . . . . Max Security . | . . . . Squads Dispatched 4 | . 2 . 2 Investigation 3 | . 2 . 1 Extermination . | . . . . Reinforcement 1 | . . . 1 Assault . | . . . . Garrison . | . . . . Intercept . | . . . . Searches Triggered . | . . . . Construction Impeded . | . . . . Haulers Reinforced . | . . . . Active Scanning Responses . | . . . . Cargo Convoy Interrupts . | . . . . Stealth | -11 -10 -10 -9 --------- Run | Yrd Mat Min Mat Distress Signals 4 | . . 1 3 Communications Jammed . | . . . . Distress Signals . | . . . . Times Spotted 51 | . 15 9 27 Peak Tracking Total 4 | . 4 4 4 Tactical Retreats 4 | . 1 2 1 Traps | -11 -10 -10 -9 ------- Run | Yrd Mat Min Mat Traps Triggered 4 | . 3 . 1 Indirectly . | . . . . Trap Hack Attempts . | . . . . Triggered . | . . . . Disarmed . | . . . . Reprogrammed . | . . . . Reused . | . . . . Traps Extracted . | . . . . Installed . | . . . . Triggered 1 | . 1 . . Machines | -11 -10 -10 -9 ---------- Run | Yrd Mat Min Mat Machines Disabled 1 | . . . 1 Max in Single Turn 1 | . . . 1 Machines Repaired . | . . . . Machines Dismantled . | . . . . Machines Sabotaged . | . . . . Overloaded Fab Kills . | . . . . Hacking | -11 -10 -10 -9 --------- Run | Yrd Mat Min Mat Machines Accessed 1 | . . . 1 Terminals 1 | . . . 1 Fabricators . | . . . . Repair Stations . | . . . . Recycling Units . | . . . . Scanalyzers . | . . . . Garrison Access . | . . . . Total Hacks 2 | . . . 2 Successful 2 | . . . 2 Failed . | . . . . Catastrophic . | . . . . Database Lockouts . | . . . . Manual . | . . . . Terminals 2 | . . . 2 Fabricators . | . . . . Repair Stations . | . . . . Recycling Units . | . . . . Scanalyzers . | . . . . Garrison Access . | . . . . Terminal Hacks 2 | . . . 2 Emergency Access Points 1 | . . . 1 Locate Traps 1 | . . . 1 Fabricator Hacks . | . . . . Repair Station Hacks . | . . . . Recycling Unit Hacks . | . . . . Scanalyzer . | . . . . Garrison Access Hacks . | . . . . Unauthorized Hacks . | . . . . Terminals . | . . . . Fabricators . | . . . . Repair Stations . | . . . . Recycling Units . | . . . . Scanalyzers . | . . . . Garrison Access . | . . . . Data Cores Recovered . | . . . . Used . | . . . . Hacking Detections . | . . . . Full Trace Events . | . . . . Feedback Events . | . . . . Feedback Blocked . | . . . . Robot Schematics Acquired . | . . . . Robots Built . | . . . . Authchips . | . . . . Time . | . . . . Total Robot Build Rating . | . . . . Part Schematics Acquired . | . . . . Parts Built . | . . . . Authchips . | . . . . Time . | . . . . Total Part Build Rating . | . . . . Parts Repaired . | . . . . Time . | . . . . Parts Recycled . | . . . . Recycled Matter . | . . . . Retrieved Matter . | . . . . Retrieved Components . | . . . . Parts Scanalyzed . | . . . . Part Schematics Acquired . | . . . . Parts Damaged . | . . . . Bothacking | -11 -10 -10 -9 ------------ Run | Yrd Mat Min Mat Used RIF Installer . | . . . . Robots Hacked . | . . . . Non-combat . | . . . . Combat . | . . . . Robot Hacks Applied . | . . . . Relay Couplers Released . | . . . . Fabnet Peak Effective % . | . . . . Robots Rewired . | . . . . Allies Hacked . | . . . . Hacks Repelled . | . . . . Allies | -11 -10 -10 -9 -------- Run | Yrd Mat Min Mat Total Allies . | . . . . Largest Group . | . . . . Highest-Rated Group . | . . . . Highest-Rated Ally . | . . . . Total Orders . | . . . . Ally Attacks . | . . . . Total Damage . | . . . . Kills . | . . . . Allies Corrupted . | . . . . Allies Melted . | . . . . Intel | -11 -10 -10 -9 ------- Run | Yrd Mat Min Mat Robot Analysis Total . | . . . . Derelict Logs Recovered 1 | . . 1 . Drone Launches . | . . . . Drone Recoveries . | . . . . Exploration | -11 -10 -10 -9 ------------- Run | Yrd Mat Min Mat Turns Passed 1968 | 50 623 225 1070 Spaces Moved 1669 | 50 618 269 732 Core 27 | 6 . . 21 Treads . | . . . . Legs 474 | . . . 474 Wheels 1168 | 44 618 269 237 Hover . | . . . . Flight . | . . . . Fastest Speed 50 | 50 80 80 80 Average Speed 92 | 76 80 80 109 Slowest Speed 200 | 80 80 80 200 Overloaded Moves . | . . . . Propulsion Burnouts . | . . . . Robots Hopped . | . . . . Cave-ins Triggered . | . . . . Exploration Rate (%) 46 | 3 66 72 44 Regions Visited 3 Branch Regions 1 Pre-discovered Areas . | . . . . Known Exits Taken . | . . . . Unknown Exits Taken 3 | 1 1 1 . Scrap Searched 1 | . . 1 . Spaces Dug . | . . . . Terrain Destroyed 18 | . . . 18 Melee . | . . . . Projectile . | . . . . AOE 18 | . . . 18 Terrain Rammed . | . . . . Walls Destroyed . | . . . . Machines Disabled . | . . . . Actions | -11 -10 -10 -9 --------- Run | Yrd Mat Min Mat Total 1915 | 61 692 278 884 Wait 95 | . 37 . 58 Move 1666 | 49 617 268 732 Hop . | . . . . Pick Up 26 | 6 7 5 8 Fast Attach 4 | . . . 4 Attach 14 | 6 1 1 6 Detach 1 | . . . 1 Swap 8 | . 1 2 5 Drop 11 | . 1 1 9 Fire 40 | . 28 . 12 Melee 49 | . . . 49 Ram 1 | . . 1 . Kick . | . . . . Crush . | . . . . Escape Stasis . | . . . . Rewire . | . . . . Trap . | . . . . Miscellaneous . | . . . . Route ------- -11/Scrapyard -10/Materials (discovered 3 exits: *Mat x2 / [*Min]) -10/Mines -9/Materials (discovered 2 exits: [*Mat] / [*Min]) History --------- Turn | Location | Event 3 | -11/Scrapyard | Discovered new exit (range 16) 51 | -11/Scrapyard | Entered Materials 92 | -10/Materials | Discovered new exit (range 8) 269 | -10/Materials | Discovered new exit (range 12) 315 | -10/Materials | Build established: Mutant 571 | -10/Materials | Discovered new exit (range 6) 674 | -10/Materials | Entered Mines 681 | -10/Mines | Received a Rocket Launcher from a helpful Derelict 765 | -10/Mines | Assembled infested the area 845 | -10/Mines | Learned Materials terminal intel 879 | -10/Mines | Discovered new exit (range 14) 899 | -10/Mines | Entered Materials 899 | -9/Materials | Evolved 2 slots: Utility x2 900 | -9/Materials | Loaded intel: 12 terminal locations 1022 | -9/Materials | Discovered new exit (range 6) 1307 | -9/Materials | Discovered new exit (range 6) 1969 | -9/Materials | Self-destructed Last Messages --------------- 01917_ Y-45 Defender destroyed. 01923_ Acquired Hvy. Assault Rifle. 01926_ Dropped Mining Claw. 01927_ Dropped Imp. Grenade Launcher. 01928_ Acquired Beam Rifle. 01929_ Acquired 10 matter. 01952_ W-16 Scout destroyed. 01956_ Triggered Alarm Trap. 01956_ An alarm sounds. 01956_ ALERT: Alarm triggered, dispatching investigation squad. 01962_ R-06 Scavenger collects Visual Processing Unit. 01965_ R-06 Scavenger collects Lgt. Ion Engine. 01967_ ALERT: Hostiles spotted, dispatching reinforcements to Terminal M001. 01967_ C-30 ARC bursts open, deploying its payload. 01967_ S-10 Pest unfolds itself. 01967_ Lgt. Nuclear Core destroyed. 01969_ R-06 Scavenger collects Signal Interpreter. Map ----- +----------------------------------------------------+ | ?????????????? ?????????????????????# | | ??????????????# ?????############### | | ??????????????# ##### ==% / | | ??????????????# !]###################### | | ??????????????# #????????????????????? | | ??????????????# #????????????????????? | | ??????????????######### #??????????????####### | | ??????????????????????## ##?######???????# | | ???????????????????????# # #???????# | | ???????????????????????+ + T [#???????# """ | | ???????????????????????# # #???????# """ | | ???????????????????????# #??######???????# """ | | ??????????????????????####+######??????????# | | ??????????????????????# #??????????# | | ??????????????????????# #??????????# """ | | ??????????????????????# #??????????#! """ | | ????????????????####### ? +???+??????# """ | | ????????????????# ###+#######??????????# | | ????????????????# #?????????????# | | ????????????????# s #?????????????# """ | | ????????????????# %s #?????????????# """ | | ????????????????# #s ###########+### """ | | ????????????????## ## | | ?????????????????# ?# | | ?????????????????# ??# u | | ?????????????????# ???# @ ####################+ | | ?????????????????#????# r #????????????????? | | ??????????????????????# #???????????????? "" | | ??????????????????????# #??????????????? """ | | ??????????????????????# t#?????????????# """ | | ??????????????????????# #?????????????# """ | | ???????????????????T??# k #?????????????# ???" | | ??????????????????????# #?????????????# ??? | | ??????????????????????# #?????????????# ?? | | ??????????????????????# a #?????????????????### | | ??????????????????????# #???????????????????? | | ??????????????????????# #???????????????????? | | ??????????????????????+ #???????????????????? | | ??????????????????????# +???????????????????? | | ??????????????????????# #???????????????????? | | ??????????????????????? ?????????????????????? | | ?????????????????????????????????????????????????? | | ?????????????????????????????????????????????????? | | ?????????????????????????????????????????????????? | | ?????????????????????????????????????????????????? | | ?????????????????????????????????????????????????? | | ?????????????????????????????????????????????????? | | ?????????????????????????????????????????????????? | | ?????????????????????????????????????????????????? | | ?????????????????????????????????????????????????? | +----------------------------------------------------+ Best States ------------- Heat Dissipation 28 Energy Generation 14 Energy Capacity 250 Matter Stores 300 Matter Capacity 300 Sight Range 16 Robot Scan Range 14 Terrain Scan Density 10 ECM Strength 1 Resistance: KI 20 Resistance: TH 20 Resistance: EX 20 Resistance: EM 20 Resistance: I 20 Resistance: S 20 Resistance: P 20 Evasion (%) 55 Offensive Hacking 10 Item Schematics ----------------- None Robot Schematics ------------------ None Fabricated ------------ Nothing Alien Tech Used ----------------- None Achievements -------------- None Challenges ------------ None Game ------ Seed GravityCoolingScreen Manual? 0 Play Time 00:20:09 Cumulative 200.1 hours Start 2024.08.17 @ 00:21:02 End 2024.08.17 @ 00:34:35 Sessions 1 Manual Loads 0 Difficulty Adventurer Special Mode None Game No. 298 Rogue 241 Adventurer 57 Explorer 0 Win Type - Total 5 Types 2/1/0/2/0/0/0/0/0 Lore% 31 Gallery% 58 Achievement% 54 Wizard Run 0 Options --------- Layout 1 ASCII 0 Keyboard 0 Movement Arrows Keybinds 0 Fullscreen 1 Font 16/SmallcapsGlow Map View 55x38 Zoom Use 0% Tactical HUD 1 Map Filters NONE Filters NONE Steam 1 RUN: 9bd55286-9f72-436e-93c0-91e40f929b96